fUST/lending_fUST_20250408
["ID","MTS","AMOUNT","RATE_DAILY","PERIOD"]
[357492513,1744087834811,-605.36902737,0.00019989,2]
[357492514,1744087834821,-500.0,0.00019989,2]
[357492515,1744087834831,-186.33958104,0.00019989,2]
[357492516,1744087834841,-500.0,0.00019989,2]
[357492517,1744087834850,-500.0,0.00019989,2]
[357492518,1744087834860,-500.0,0.00019989,2]
[357492519,1744087834870,-500.0,0.00019989,2]
[357492520,1744087834881,-596.45591957,0.00019989,2]
[357492521,1744087834891,-500.0,0.00019989,2]
[357492522,1744087835068,-500.0,0.00019989,2]
[357492523,1744087835082,-500.0,0.00019989,2]
[357492524,1744087835093,-500.0,0.00019989,2]
[357492525,1744087835104,-500.0,0.00019989,2]
[357492526,1744087835114,-500.0,0.00019989,2]
[357492527,1744087835124,-549.29015315,0.00019989,2]
[357492528,1744087835134,-500.0,0.00019989,2]
[357492529,1744087835144,-500.0,0.00019989,2]
[357492530,1744087835153,-500.0,0.00019989,2]
[357492531,1744087835164,-500.0,0.00019989,2]
[357492532,1744087835175,-708.25,0.00019989,2]
[357492533,1744087835184,-857.15,0.00019989,2]
[357492534,1744087835193,-213.74858961,0.00019989,2]
[357492535,1744087835203,-500.0,0.00019989,2]
[357492536,1744087835212,-500.0,0.00019989,2]
[357492537,1744087835222,-500.0,0.00019989,2]
[357492538,1744087835232,-500.0,0.00019989,2]
[357492539,1744087835241,-500.0,0.00019989,2]
[357492540,1744087835252,-500.0,0.00019989,2]
[357492541,1744087835261,-500.0,0.00019989,2]
[357492542,1744087835271,-500.0,0.00019989,2]
[357492543,1744087835280,-915.7,0.00019989,2]
[357492544,1744087835289,-500.0,0.00019989,2]
[357492545,1744087835299,-500.0,0.00019989,2]
[357492546,1744087835309,-500.0,0.00019989,2]
[357492547,1744087835319,-500.0,0.00019989,2]
[357492548,1744087835329,-500.0,0.00019989,2]
[357492549,1744087835338,-500.0,0.00019989,2]
[357492550,1744087835348,-500.0,0.00019989,2]
[357492551,1744087835357,-500.0,0.00019989,2]
[357492552,1744087835366,-500.0,0.00019989,2]
[357492553,1744087835378,-500.0,0.00019989,2]
[357492554,1744087835387,-500.0,0.00019989,2]
[357492555,1744087835397,-500.0,0.00019989,2]
[357492556,1744087835407,-500.0,0.00019989,2]
[357492557,1744087835416,-500.0,0.00019989,2]
[357492558,1744087835426,-500.0,0.00019989,2]
[357492559,1744087835436,-1081.61,0.00019989,2]
[357492560,1744087835445,-500.0,0.00019989,2]
[357492561,1744087835455,-500.0,0.00019989,2]
[357492562,1744087835464,-500.0,0.00019989,2]
[357492563,1744087835474,-882.13,0.00019989,2]
[357492564,1744087835483,-836.88,0.00019989,2]
[357492565,1744087835493,-553.71,0.00019989,2]
[357492566,1744087835502,-500.0,0.00019989,2]
[357492567,1744087835512,-500.0,0.00019989,2]
[357492568,1744087835521,-500.0,0.00019989,2]
[357492569,1744087835530,-500.0,0.00019989,2]
[357492570,1744087835540,-870.38,0.00019989,2]
[357492571,1744087835549,-500.0,0.00019989,2]
[357492572,1744087835559,-500.0,0.00019989,2]
[357492573,1744087835568,-966.82,0.00019989,2]
[357492574,1744087835578,-500.0,0.00019989,2]
[357492575,1744087835587,-500.0,0.00019989,2]
[357492576,1744087835596,-500.0,0.00019989,2]
[357492577,1744087835606,-958.48,0.00019989,2]
[357492578,1744087835615,-500.0,0.00019989,2]
[357492579,1744087835625,-500.0,0.00019989,2]
[357492580,1744087835634,-3050.94,0.00019989,2]
[357492581,1744087835643,-500.0,0.00019989,2]
[357492582,1744087835652,-500.0,0.00019989,2]
[357492583,1744087835662,-500.0,0.00019989,2]
[357492584,1744087835671,-500.0,0.00019989,2]
[357492585,1744087835680,-500.0,0.00019989,2]
[357492586,1744087835690,-500.0,0.00019989,2]
[357492587,1744087835699,-500.0,0.00019989,2]
[357492588,1744087835709,-500.0,0.00019989,2]
[357492589,1744087835718,-436.81734765,0.00019989,2]
[357492590,1744087835727,-500.0,0.00019989,2]
[357492591,1744087835736,-500.0,0.00019989,2]
[357492592,1744087835746,-500.0,0.00019989,2]
[357492593,1744087835755,-500.0,0.00019989,2]
[357492594,1744087835764,-500.0,0.00019989,2]
[357492595,1744087835774,-500.0,0.00019989,2]
[357492596,1744087835783,-533.18,0.00019989,2]
[357492597,1744087835793,-500.0,0.00019989,2]
[357492598,1744087835802,-500.0,0.00019989,2]
[357492599,1744087835811,-500.0,0.00019989,2]
[357492600,1744087835820,-534.26152444,0.00019989,2]
[357492601,1744087835829,-844.73,0.00019989,2]
[357492602,1744087835838,-529.38017197,0.00019989,2]
[357492603,1744087835848,-527.1380182,0.00019989,2]
[357492604,1744087835857,-500.0,0.00019989,2]
[357492605,1744087835866,-500.0,0.00019989,2]
[357492606,1744087835876,-537.76075572,0.00019989,2]
[357492607,1744087835886,-1629.74,0.00019989,2]
[357492608,1744087835894,-500.0,0.00019989,2]
[357492609,1744087835903,-500.0,0.00019989,2]
[357492610,1744087835912,-500.0,0.00019989,2]
[357492611,1744087835921,-533.62500863,0.00019989,2]
[357492612,1744087835930,-500.0,0.00019989,2]
[357492613,1744087835939,-529.33687028,0.00019989,2]
[357492614,1744087835948,-415.58738839,0.00019989,2]
[357492615,1744087835957,-500.0,0.00019989,2]
[357492616,1744087835967,-537.34,0.00019989,2]
[357492617,1744087835976,-900.42,0.00019989,2]
[357492618,1744087835985,-500.0,0.00019989,2]
[357492619,1744087835994,-500.0,0.00019989,2]
[357492620,1744087836003,-500.0,0.00019989,2]
[357492621,1744087836013,-500.0,0.00019989,2]
[357492622,1744087836022,-500.0,0.00019989,2]
[357492623,1744087836032,-500.0,0.00019989,2]
[357492624,1744087836041,-511.09868394,0.00019989,2]
[357492625,1744087836050,-511.34493494,0.00019989,2]
[357492626,1744087836059,-500.0,0.00019989,2]
[357492627,1744087836069,-500.0,0.00019989,2]
[357492628,1744087836079,-619.0,0.0002,2]
[357492629,1744087836092,-1979.0,0.0002,2]
[357492630,1744087836102,-1064.0,0.0002,2]
[357492631,1744087836111,-415.60656255,0.00020163,2]
[357492632,1744087836120,-500.0,0.0002026,2]
[357492633,1744087836136,-3144.01,0.0002026,2]
[357492634,1744087836146,-1236.86,0.0002026,2]
[357492635,1744087836155,-500.0,0.0002026,2]
[357492636,1744087836166,-500.0,0.0002026,2]
[357492637,1744087836177,-539.75890705,0.0002026,2]
[357492638,1744087836187,-524.97888356,0.00020261,2]
[357492639,1744087836196,-500.0,0.00020261,2]
[357492640,1744087836205,-500.0,0.00020261,2]
[357492641,1744087836215,-500.0,0.00020261,2]
[357492642,1744087836224,-500.0,0.00020261,2]
[357492643,1744087836233,-513.52426748,0.00020261,2]
[357492644,1744087836242,-457.73322699,0.00020261,2]
[357492645,1744087836252,-500.0,0.00020261,2]
[357492646,1744087836262,-939.52,0.00020261,2]
[357492647,1744087836271,-500.0,0.00020261,2]
[357492648,1744087836281,-500.0,0.00020261,2]
[357492649,1744087836291,-500.0,0.00020261,2]
[357492650,1744087836301,-185.76001393,0.00020261,2]
[357492651,1744087836311,-500.0,0.00020261,2]
[357492652,1744087836321,-491.32629685,0.00020261,2]
[357492653,1744087836330,-1149.36,0.00020261,2]
[357492654,1744087836340,-500.0,0.00020261,2]
[357492655,1744087836349,-500.0,0.00020261,2]
[357492656,1744087836359,-500.0,0.00020261,2]
[357492657,1744087836368,-500.0,0.00020261,2]
[357492658,1744087836380,-500.0,0.00020261,2]
[357492659,1744087836390,-3861.17636955,0.00020261,2]
[357492660,1744087836405,-13.05363045,0.00020261,2]
[357492661,1744087836415,-185.40656279,0.00020261,2]
[357492662,1744087836425,-1064.06,0.00020261,2]
[357492663,1744087836434,-500.0,0.00020261,2]
[357492664,1744087836445,-500.0,0.00020261,2]
[357492665,1744087836455,-500.0,0.00020261,2]
[357492666,1744087836464,-1472.0,0.00020261,2]
[357492667,1744087836474,-1466.85,0.00020261,2]
[357492668,1744087836484,-892.51,0.00020261,2]
[357492669,1744087836493,-500.0,0.00020261,2]
[357492670,1744087836503,-830.18,0.00020261,2]
[357492671,1744087836512,-2153.98,0.00020261,2]
[357492672,1744087836522,-500.0,0.00020261,2]
[357492673,1744087836531,-500.0,0.00020261,2]
[357492674,1744087836541,-500.0,0.00020261,2]
[357492675,1744087836551,-500.0,0.00020261,2]
[357492676,1744087836560,-534.8,0.00020261,2]
[357492677,1744087836569,-1442.99,0.00020261,2]
[357492678,1744087836579,-500.0,0.00020261,2]
[357492679,1744087836588,-1725.72,0.00020261,2]
[357492680,1744087836598,-500.0,0.00020261,2]
[357492681,1744087836607,-500.0,0.00020261,2]
[357492682,1744087836616,-500.0,0.00020261,2]
[357492683,1744087836627,-500.0,0.00020262,2]
[357492684,1744087836637,-500.0,0.00020262,2]
[357492685,1744087836647,-500.0,0.00020262,2]
[357492686,1744087836656,-511.71412829,0.00020262,2]
[357492687,1744087836665,-500.0,0.00020262,2]
[357492688,1744087836674,-503.38,0.00020262,2]
[357492689,1744087836684,-500.0,0.00020262,2]
[357492690,1744087836694,-500.0,0.00020262,2]
[357492691,1744087836703,-500.0,0.00020262,2]
[357492692,1744087836713,-500.0,0.00020262,2]
[357492693,1744087836724,-500.0,0.00020262,2]
[357492694,1744087836734,-500.0,0.00020262,2]
[357492695,1744087836744,-579.07,0.00020262,2]
[357492696,1744087836753,-671.91,0.00020262,2]
[357492697,1744087836762,-500.0,0.00020262,2]
[357492698,1744087836772,-500.0,0.00020262,2]
[357492699,1744087836781,-500.0,0.00020262,2]
[357492700,1744087836790,-500.0,0.00020262,2]
[357492701,1744087836800,-500.0,0.00020262,2]
[357492702,1744087836810,-500.0,0.00020262,2]
[357492703,1744087836819,-500.0,0.00020262,2]
[357492704,1744087836828,-884.75,0.00020262,2]
[357492705,1744087836838,-500.0,0.00020262,2]
[357492706,1744087836847,-500.0,0.00020262,2]
[357492707,1744087836857,-500.0,0.00020262,2]
[357492708,1744087836867,-500.0,0.00020262,2]
[357492709,1744087836878,-500.0,0.00020262,2]
[357492710,1744087836888,-500.0,0.00020262,2]
[357492711,1744087836897,-500.0,0.00020262,2]
[357492712,1744087836907,-500.0,0.00020262,2]
[357492713,1744087836916,-1732.52,0.00020262,2]
[357492714,1744087836926,-2224.87,0.00020262,2]
[357492715,1744087836936,-500.0,0.00020262,2]
[357492716,1744087836945,-1614.23,0.00020262,2]
[357492717,1744087836955,-500.0,0.00020262,2]
[357492718,1744087836964,-1617.77,0.00020262,2]
[357492719,1744087836974,-1063.14,0.00020262,2]
[357492720,1744087836983,-500.0,0.00020262,2]
[357492721,1744087836992,-500.0,0.00020262,2]
[357492722,1744087837002,-500.0,0.00020262,2]
[357492723,1744087837011,-910.25,0.00020262,2]
[357492724,1744087837022,-500.0,0.00020262,2]
[357492725,1744087837032,-500.0,0.00020262,2]
[357492726,1744087837042,-1239.06,0.00020262,2]
[357492727,1744087837052,-500.0,0.00020262,2]
[357492728,1744087837062,-500.0,0.00020262,2]
[357492729,1744087837071,-991.32,0.00020262,2]
[357492730,1744087837082,-1263.78,0.00020262,2]
[357492731,1744087837094,-500.0,0.00020262,2]
[357492732,1744087837103,-500.0,0.00020262,2]
[357492733,1744087837113,-500.0,0.00020262,2]
[357492734,1744087837122,-960.96,0.00020262,2]
[357492735,1744087837135,-500.0,0.00020262,2]
[357492736,1744087837144,-500.0,0.00020262,2]
[357492737,1744087837153,-500.0,0.00020262,2]
[357492738,1744087837163,-515.66099596,0.00020262,2]
[357492739,1744087837173,-500.0,0.00020262,2]
[357492740,1744087837183,-500.0,0.00020262,2]
[357492741,1744087837192,-500.0,0.00020262,2]
[357492742,1744087837202,-500.0,0.00020262,2]
[357492743,1744087837211,-500.0,0.00020262,2]
[357492744,1744087837221,-500.0,0.00020262,2]
[357492745,1744087837230,-500.0,0.00020262,2]
[357492746,1744087837239,-2443.44,0.00020262,2]
[357492747,1744087837249,-500.0,0.00020262,2]
[357492748,1744087837259,-500.0,0.00020262,2]
[357492749,1744087837269,-180.03617022,0.00020262,2]
[357492750,1744087837279,-500.0,0.00020262,2]
[357492751,1744087837289,-500.0,0.00020262,2]
[357492752,1744087837298,-500.0,0.00020262,2]
[357492753,1744087837307,-500.0,0.00020262,2]
[357492754,1744087837316,-1686.94,0.00020262,2]
[357492755,1744087837326,-979.8,0.00020262,2]
[357492756,1744087837336,-500.0,0.00020262,2]
[357492757,1744087837346,-972.39,0.00020262,2]
[357492758,1744087837356,-500.0,0.00020262,2]
[357492759,1744087837366,-500.0,0.00020262,2]
[357492760,1744087837376,-500.0,0.00020262,2]
[357492761,1744087837385,-922.59,0.00020262,2]
[357492762,1744087837396,-500.0,0.00020262,2]
[357492763,1744087837405,-844.84525457,0.00020262,2]
[357492764,1744087837568,-943.56474543,0.00020262,2]
[357492765,1744087837579,-500.0,0.00020262,2]
[357492766,1744087837589,-6746.79,0.00020262,2]
[357492767,1744087837599,-500.0,0.00020262,2]
[357492768,1744087837609,-1043.53,0.00020262,2]
[357492769,1744087837618,-500.0,0.00020262,2]
[357492770,1744087837628,-500.0,0.00020262,2]
[357492771,1744087837638,-500.0,0.00020262,2]
[357492772,1744087837648,-500.0,0.00020262,2]
[357492773,1744087837659,-681.08,0.00020262,2]
[357492774,1744087837669,-500.0,0.00020262,2]
[357492775,1744087837679,-734.76,0.00020262,2]
[357492776,1744087837689,-500.0,0.00020263,2]
[357492777,1744087837699,-158.59495579,0.00020263,2]
[357492778,1744087837709,-500.0,0.00020263,2]
[357492779,1744087837718,-500.0,0.00020263,2]
[357492780,1744087837728,-500.0,0.00020263,2]
[357492781,1744087837738,-500.0,0.00020263,2]
[357492782,1744087837748,-500.0,0.00020263,2]
[357492783,1744087837758,-500.0,0.00020263,2]
[357492784,1744087837768,-501.48025608,0.00020263,2]
[357492785,1744087837777,-500.0,0.00020263,2]
[357492786,1744087837787,-500.0,0.00020263,2]
[357492787,1744087837797,-500.0,0.00020263,2]
[357492788,1744087837806,-500.0,0.00020263,2]
[357492789,1744087837817,-503.47069159,0.00020263,2]
[357492790,1744087837826,-500.0,0.00020263,2]
[357492791,1744087837836,-500.0,0.00020263,2]
[357492792,1744087837846,-708.25,0.00020263,2]
[357492793,1744087837857,-857.15,0.00020263,2]
[357492794,1744087837866,-500.0,0.00020263,2]
[357492795,1744087837876,-500.0,0.00020263,2]
[357492796,1744087837885,-500.0,0.00020263,2]
[357492797,1744087837895,-500.0,0.00020263,2]
[357492798,1744087837905,-377.07719113,0.00020263,2]
[357492799,1744087837916,-500.0,0.00020263,2]
[357492800,1744087837925,-500.0,0.00020263,2]
[357492801,1744087837935,-500.0,0.00020263,2]
[357492802,1744087837944,-915.7,0.00020263,2]
[357492803,1744087837954,-500.0,0.00020263,2]
[357492804,1744087837964,-500.0,0.00020263,2]
[357492805,1744087837973,-500.0,0.00020263,2]
[357492806,1744087837982,-500.0,0.00020263,2]
[357492807,1744087837991,-500.0,0.00020263,2]
[357492808,1744087838001,-500.0,0.00020263,2]
[357492809,1744087838011,-500.0,0.00020263,2]
[357492811,1744087838020,-500.0,0.00020263,2]
[357492812,1744087838030,-500.0,0.00020263,2]
[357492813,1744087838039,-500.0,0.00020263,2]
[357492814,1744087838048,-500.0,0.00020263,2]
[357492815,1744087838058,-500.0,0.00020263,2]
[357492816,1744087838067,-500.0,0.00020263,2]
[357492817,1744087838077,-500.0,0.00020263,2]
[357492819,1744087838089,-500.0,0.00020263,2]
[357492822,1744087838100,-1081.61,0.00020263,2]
[357492824,1744087838110,-500.0,0.00020263,2]
[357492826,1744087838120,-500.0,0.00020263,2]
[357492828,1744087838131,-500.0,0.00020263,2]
[357492829,1744087838141,-882.13,0.00020263,2]
[357492830,1744087838150,-836.88,0.00020263,2]
[357492831,1744087838160,-553.71,0.00020263,2]
[357492832,1744087838170,-500.0,0.00020263,2]
[357492833,1744087838180,-500.0,0.00020263,2]
[357492834,1744087838190,-500.0,0.00020263,2]
[357492835,1744087838199,-870.38,0.00020263,2]
[357492836,1744087838209,-500.0,0.00020263,2]
[357492837,1744087838219,-500.0,0.00020263,2]
[357492839,1744087838228,-966.82,0.00020263,2]
[357492841,1744087838237,-500.0,0.00020263,2]
[357492843,1744087838246,-500.0,0.00020263,2]
[357492845,1744087838256,-188.7389597,0.00020263,2]
[357492847,1744087838264,-958.48,0.00020263,2]
[357492849,1744087838274,-500.0,0.00020263,2]
[357492851,1744087838283,-500.0,0.00020263,2]
[357492853,1744087838293,-3050.94,0.00020263,2]
[357492855,1744087838303,-500.0,0.00020263,2]
[357492857,1744087838312,-500.0,0.00020263,2]
[357492858,1744087838321,-500.0,0.00020263,2]
[357492859,1744087838331,-509.66325737,0.00020263,2]
[357492860,1744087838341,-500.0,0.00020263,2]
[357492862,1744087838349,-500.0,0.00020263,2]
[357492863,1744087838359,-500.0,0.00020263,2]
[357492864,1744087838368,-500.0,0.00020263,2]
[357492865,1744087838378,-500.0,0.00020263,2]
[357492866,1744087838388,-466.67446106,0.00020263,2]
[357492867,1744087838397,-500.0,0.00020263,2]
[357492868,1744087838407,-500.0,0.00020263,2]
[357492869,1744087838416,-500.0,0.00020263,2]
[357492870,1744087838425,-533.18,0.00020263,2]
[357492871,1744087838434,-500.0,0.00020263,2]
[357492872,1744087838444,-500.0,0.00020263,2]
[357492873,1744087838453,-844.73,0.00020263,2]
[357492875,1744087838462,-500.0,0.00020263,2]
[357492877,1744087838471,-1629.74,0.00020263,2]
[357492879,1744087838481,-500.0,0.00020263,2]
[357492881,1744087838490,-500.0,0.00020263,2]
[357492882,1744087838499,-500.0,0.00020263,2]
[357492883,1744087838508,-500.0,0.00020263,2]
[357492885,1744087838517,-500.0,0.00020263,2]
[357492886,1744087838527,-537.34,0.00020263,2]
[357492887,1744087838535,-900.42,0.00020263,2]
[357492888,1744087838545,-500.0,0.00020263,2]
[357492892,1744087838554,-500.0,0.00020263,2]
[357492893,1744087838766,-500.0,0.00020263,2]
[357492894,1744087838776,-500.0,0.00020263,2]
[357492895,1744087838786,-500.0,0.00020273,2]
[357492896,1744087838796,-500.0,0.00020273,2]
[357492897,1744087838805,-500.0,0.00020273,2]
[357492898,1744087838815,-501.77968287,0.00020273,2]
[357492899,1744087838824,-502.64585997,0.00020273,2]
[357492900,1744087838834,-152.0,0.00020365,2]
[357492901,1744087838843,-415.60656253,0.00020369,2]
[357492902,1744087838854,-243.21357143,0.00020394,2]
[357492903,1744087838864,-500.0,0.00020534,2]
[357492904,1744087838874,-3144.01,0.00020534,2]
[357492905,1744087838884,-1236.86,0.00020534,2]
[357492906,1744087838894,-500.0,0.00020534,2]
[357492907,1744087838903,-500.0,0.00020535,2]
[357492908,1744087838913,-500.0,0.00020535,2]
[357492909,1744087838923,-500.0,0.00020535,2]
[357492910,1744087838933,-500.0,0.00020535,2]
[357492911,1744087838942,-939.52,0.00020535,2]
[357492912,1744087838952,-500.0,0.00020535,2]
[357492913,1744087838962,-500.0,0.00020535,2]
[357492914,1744087838972,-500.0,0.00020535,2]
[357492915,1744087838982,-500.0,0.00020535,2]
[357492916,1744087838992,-1149.36,0.00020535,2]
[357492917,1744087839002,-500.0,0.00020535,2]
[357492918,1744087839011,-500.0,0.00020535,2]
[357492919,1744087839021,-500.0,0.00020535,2]
[357492920,1744087839031,-500.0,0.00020535,2]
[357492921,1744087839041,-500.0,0.00020535,2]
[357492922,1744087839051,-3874.23,0.00020535,2]
[357492923,1744087839060,-1064.06,0.00020535,2]
[357492924,1744087839070,-500.0,0.00020535,2]
[357492925,1744087839080,-500.0,0.00020535,2]
[357492926,1744087839094,-500.0,0.00020535,2]
[357492927,1744087839104,-1472.0,0.00020535,2]
[357492928,1744087839114,-1466.85,0.00020535,2]
[357492929,1744087839123,-892.51,0.00020535,2]
[357492930,1744087839135,-500.0,0.00020535,2]
[357492931,1744087839144,-830.18,0.00020535,2]
[357492932,1744087839154,-2153.98,0.00020535,2]
[357492933,1744087839165,-500.0,0.00020535,2]
[357492934,1744087839175,-500.0,0.00020535,2]
[357492935,1744087839184,-500.0,0.00020535,2]
[357492936,1744087839194,-500.0,0.00020535,2]
[357492937,1744087839204,-534.8,0.00020535,2]
[357492938,1744087839213,-1442.99,0.00020535,2]
[357492939,1744087839223,-500.0,0.00020535,2]
[357492940,1744087839233,-1725.72,0.00020535,2]
[357492941,1744087839243,-500.0,0.00020535,2]
[357492942,1744087839252,-500.0,0.00020535,2]
[357492943,1744087839262,-500.0,0.00020535,2]
[357492944,1744087839273,-500.0,0.00020536,2]
[357492945,1744087839283,-500.0,0.00020536,2]
[357492946,1744087839293,-500.0,0.00020536,2]
[357492947,1744087839302,-510.90305997,0.00020536,2]
[357492948,1744087839312,-503.38,0.00020536,2]
[357492949,1744087839322,-500.0,0.00020536,2]
[357492950,1744087839332,-500.0,0.00020536,2]
[357492951,1744087839342,-500.0,0.00020536,2]
[357492952,1744087839351,-523.98919345,0.00020536,2]
[357492953,1744087839360,-287.45188397,0.00020536,2]
[357492954,1744087839370,-500.0,0.00020536,2]
[357492955,1744087839381,-579.07,0.00020536,2]
[357492956,1744087839391,-671.91,0.00020536,2]
[357492957,1744087839400,-500.0,0.00020536,2]
[357492958,1744087839411,-500.0,0.00020536,2]
[357492959,1744087839420,-500.0,0.00020536,2]
[357492960,1744087839430,-500.0,0.00020536,2]
[357492961,1744087839439,-500.0,0.00020536,2]
[357492962,1744087839449,-500.0,0.00020536,2]
[357492963,1744087839459,-500.0,0.00020536,2]
[357492964,1744087839473,-884.75,0.00020536,2]
[357492965,1744087839482,-500.0,0.00020536,2]
[357492966,1744087839492,-500.0,0.00020536,2]
[357492967,1744087839501,-453.78064277,0.00020536,2]
[357492968,1744087839510,-500.0,0.00020536,2]
[357492969,1744087839520,-500.0,0.00020536,2]
[357492970,1744087839530,-500.0,0.00020536,2]
[357492971,1744087839540,-500.0,0.00020536,2]
[357492972,1744087839550,-500.0,0.00020536,2]
[357492973,1744087839560,-1732.52,0.00020536,2]
[357492974,1744087839569,-2224.87,0.00020536,2]
[357492975,1744087839579,-500.0,0.00020536,2]
[357492976,1744087839588,-1614.23,0.00020536,2]
[357492977,1744087839598,-500.0,0.00020536,2]
[357492978,1744087839608,-1617.77,0.00020536,2]
[357492979,1744087839617,-1063.14,0.00020536,2]
[357492980,1744087839627,-500.0,0.00020536,2]
[357492981,1744087839637,-500.0,0.00020536,2]
[357492982,1744087839647,-910.25,0.00020536,2]
[357492983,1744087839656,-500.0,0.00020536,2]
[357492984,1744087839666,-500.0,0.00020536,2]
[357492985,1744087839676,-1239.06,0.00020536,2]
[357492986,1744087839685,-500.0,0.00020536,2]
[357492987,1744087839695,-500.0,0.00020536,2]
[357492988,1744087839704,-991.32,0.00020536,2]
[357492989,1744087839714,-1263.78,0.00020536,2]
[357492990,1744087839723,-500.0,0.00020536,2]
[357492991,1744087839734,-629.28533387,0.00020536,2]
[357492992,1744087839743,-500.0,0.00020536,2]
[357492993,1744087839755,-960.96,0.00020536,2]
[357492994,1744087839766,-500.0,0.00020536,2]
[357492995,1744087839782,-500.0,0.00020536,2]
[357492996,1744087839792,-500.0,0.00020536,2]
[357492997,1744087839801,-500.0,0.00020536,2]
[357492998,1744087839811,-500.0,0.00020536,2]
[357492999,1744087839820,-500.0,0.00020536,2]
[357493000,1744087839830,-500.0,0.00020536,2]
[357493001,1744087839840,-500.0,0.00020536,2]
[357493002,1744087839850,-500.0,0.00020536,2]
[357493003,1744087839859,-500.0,0.00020536,2]
[357493004,1744087839869,-2443.44,0.00020536,2]
[357493005,1744087839879,-500.0,0.00020536,2]
[357493006,1744087839888,-500.0,0.00020536,2]
[357493007,1744087839898,-500.0,0.00020536,2]
[357493008,1744087839908,-500.0,0.00020536,2]
[357493009,1744087839918,-1686.94,0.00020536,2]
[357493010,1744087839927,-979.8,0.00020536,2]
[357493011,1744087839937,-500.0,0.00020536,2]
[357493012,1744087839947,-972.39,0.00020536,2]
[357493013,1744087839956,-500.0,0.00020536,2]
[357493014,1744087839966,-500.0,0.00020536,2]
[357493016,1744087839976,-500.0,0.00020536,2]
[357493018,1744087839985,-922.59,0.00020536,2]
[357493020,1744087839995,-500.0,0.00020536,2]
[357493022,1744087840005,-1788.41,0.00020536,2]
[357493024,1744087840015,-500.0,0.00020536,2]
[357493026,1744087840025,-6746.79,0.00020536,2]
[357493028,1744087840035,-500.0,0.00020536,2]
[357493030,1744087840045,-1043.53,0.00020536,2]
[357493032,1744087840055,-500.0,0.00020536,2]
[357493033,1744087840065,-500.0,0.00020536,2]
[357493034,1744087840075,-170.26311113,0.00020536,2]
[357493035,1744087840089,-681.08,0.00020536,2]
[357493036,1744087840102,-500.0,0.00020536,2]
[357493038,1744087840111,-734.76,0.00020536,2]
[357493039,1744087840122,-500.0,0.00020537,2]
[357493041,1744087840132,-500.0,0.00020537,2]
[357493043,1744087840142,-500.0,0.00020537,2]
[357493046,1744087840152,-500.0,0.00020537,2]
[357493048,1744087840163,-500.0,0.00020537,2]
[357493050,1744087840172,-500.0,0.00020537,2]
[357493052,1744087840182,-500.0,0.00020537,2]
[357493054,1744087840192,-500.0,0.00020537,2]
[357493057,1744087840202,-500.0,0.00020537,2]
[357493059,1744087840211,-500.0,0.00020537,2]